[Event "*** Titled Tuesday Blitz"]
[Site "Chess.com"]
[Date "2021.04.06"]
[Round "1"]
[White "KubaGepard"]
[Black "olksuna"]
[Result "0-1"]
[WhiteElo "2373"]
[BlackElo "2690"]
[TimeControl "180+1"]
[EndTime "10:07:51 PDT"]
[Termination "olksuna won on time"]

1. d4 {[%clk 0:02:22.3]} 1... Nf6 {[%clk 0:02:58.4]} 2. Nf3 {[%clk 0:02:21.1]}
2... e6 {[%clk 0:02:57.6]} 3. Bf4 {[%clk 0:02:20]} 3... b6 {[%clk 0:02:57.3]} 4.
e3 {[%clk 0:02:19.7]} 4... Bb7 {[%clk 0:02:57.8]} 5. Nbd2 {[%clk 0:02:19.1]}
5... c5 {[%clk 0:02:57.6]} 6. Bd3 {[%clk 0:02:17.9]} 6... Be7 {[%clk 0:02:56.4]}
7. h3 {[%clk 0:02:17.3]} 7... O-O {[%clk 0:02:56]} 8. Qe2 {[%clk 0:02:09.1]}
8... d6 {[%clk 0:02:52.4]} 9. O-O {[%clk 0:02:07.4]} 9... a6 {[%clk 0:02:48.3]}
10. a4 {[%clk 0:02:06.9]} 10... Nbd7 {[%clk 0:02:45.5]} 11. c3 {[%clk
0:02:00.3]} 11... cxd4 {[%clk 0:02:41]} 12. exd4 {[%clk 0:01:58.8]} 12... Re8
{[%clk 0:02:40.9]} 13. Bh2 {[%clk 0:01:57]} 13... Bf8 {[%clk 0:02:39.5]} 14. Nc4
{[%clk 0:01:56.3]} 14... Qc7 {[%clk 0:02:37.1]} 15. Rfe1 {[%clk 0:01:48.8]}
15... Bc6 {[%clk 0:02:34.9]} 16. Nfd2 {[%clk 0:01:36.1]} 16... Qb7 {[%clk
0:02:13.9]} 17. f3 {[%clk 0:01:19.5]} 17... Qc7 {[%clk 0:02:12]} 18. Ne4 {[%clk
0:01:14]} 18... Nxe4 {[%clk 0:02:07.2]} 19. fxe4 {[%clk 0:01:13.5]} 19... b5
{[%clk 0:02:01.8]} 20. axb5 {[%clk 0:01:07.9]} 20... axb5 {[%clk 0:02:02.7]} 21.
Na3 {[%clk 0:01:08.1]} 21... b4 {[%clk 0:01:59]} 22. Nc4 {[%clk 0:01:06.6]}
22... bxc3 {[%clk 0:01:47.7]} 23. bxc3 {[%clk 0:01:07.5]} 23... Rxa1 {[%clk
0:01:37.8]} 24. Rxa1 {[%clk 0:01:08.4]} 24... h6 {[%clk 0:01:32.4]} 25. Rf1
{[%clk 0:01:07.2]} 25... e5 {[%clk 0:01:15.5]} 26. dxe5 {[%clk 0:00:39.2]} 26...
Nxe5 {[%clk 0:01:07.8]} 27. Nxe5 {[%clk 0:00:39]} 27... dxe5 {[%clk 0:01:08]}
28. Bc4 {[%clk 0:00:39.2]} 28... Bc5+ {[%clk 0:00:54.8]} 29. Kh1 {[%clk
0:00:39]} 29... Rf8 {[%clk 0:00:55.1]} 30. Qh5 {[%clk 0:00:38.1]} 30... Bd6
{[%clk 0:00:41.8]} 31. Qf5 {[%clk 0:00:37.3]} 31... Kh8 {[%clk 0:00:35.3]} 32.
Bg3 {[%clk 0:00:36.2]} 32... Bd7 {[%clk 0:00:32]} 33. Qh5 {[%clk 0:00:10.6]}
33... Qxc4 {[%clk 0:00:28.9]} 34. Rd1 {[%clk 0:00:10.7]} 34... Qe6 {[%clk
0:00:25.5]} 35. c4 {[%clk 0:00:09.5]} 35... Bc6 {[%clk 0:00:24.6]} 36. Bh4
{[%clk 0:00:07.4]} 36... Bc5 {[%clk 0:00:16.8]} 37. Kh2 {[%clk 0:00:06.6]} 37...
Bd4 {[%clk 0:00:17]} 38. Rb1 {[%clk 0:00:05.9]} 38... Bxe4 {[%clk 0:00:16.2]}
39. Rb5 {[%clk 0:00:05.2]} 39... Bg6 {[%clk 0:00:15.7]} 40. Qf3 {[%clk 0:00:05]}
40... e4 {[%clk 0:00:15.5]} 41. Qf4 {[%clk 0:00:04.4]} 41... Re8 {[%clk
0:00:11.7]} 42. Bg3 {[%clk 0:00:04.5]} 42... Bf6 {[%clk 0:00:10]} 43. Rd5 {[%clk
0:00:03.5]} 43... e3 {[%clk 0:00:09.9]} 44. Rd6 {[%clk 0:00:02.9]} 44... Qe5
{[%clk 0:00:08.4]} 45. Qf3 {[%clk 0:00:02]} 45... Qxg3+ {[%clk 0:00:08]} 46.
Kxg3 {[%clk 0:00:01.5]} 46... e2 {[%clk 0:00:07.9]} 0-1

[Event "*** Titled Tuesday Blitz"]
[Site "Chess.com"]
[Date "2021.04.06"]
[Round "1"]
[White "Balla_Tamas"]
[Black "semchik73"]
[Result "1-0"]
[WhiteElo "2553"]
[BlackElo "2235"]
[TimeControl "180+1"]
[EndTime "10:07:52 PDT"]
[Termination "Balla_Tamas won by checkmate"]

1. e4 {[%clk 0:02:57.9]} 1... Nf6 {[%clk 0:02:59.4]} 2. e5 {[%clk 0:02:56.9]}
2... Nd5 {[%clk 0:02:59.4]} 3. c4 {[%clk 0:02:56.4]} 3... Nb6 {[%clk 0:02:59.2]}
4. d4 {[%clk 0:02:55.8]} 4... d6 {[%clk 0:02:59.4]} 5. f4 {[%clk 0:02:54.5]}
5... dxe5 {[%clk 0:02:59.1]} 6. fxe5 {[%clk 0:02:53.3]} 6... Nc6 {[%clk
0:02:59.4]} 7. Be3 {[%clk 0:02:51.5]} 7... Bf5 {[%clk 0:02:58.9]} 8. Nc3 {[%clk
0:02:50.1]} 8... e6 {[%clk 0:02:58.7]} 9. Nf3 {[%clk 0:02:49.5]} 9... Bg4 {[%clk
0:02:58.1]} 10. Be2 {[%clk 0:02:40.8]} 10... Bxf3 {[%clk 0:02:57.9]} 11. gxf3
{[%clk 0:02:40.3]} 11... Qh4+ {[%clk 0:02:57.3]} 12. Bf2 {[%clk 0:02:39.9]}
12... Qf4 {[%clk 0:02:57]} 13. Rg1 {[%clk 0:01:30.4]} 13... h5 {[%clk
0:02:07.6]} 14. Qc1 {[%clk 0:01:20.8]} 14... Qf5 {[%clk 0:02:00.7]} 15. Qb1
{[%clk 0:01:07.4]} 15... Qf4 {[%clk 0:01:52.6]} 16. Qe4 {[%clk 0:01:06.5]} 16...
Qxe4 {[%clk 0:01:29.9]} 17. Nxe4 {[%clk 0:01:06.2]} 17... O-O-O {[%clk
0:01:27.3]} 18. O-O-O {[%clk 0:01:05.5]} 18... g6 {[%clk 0:01:24.5]} 19. f4
{[%clk 0:01:00]} 19... Bh6 {[%clk 0:01:23.6]} 20. Be3 {[%clk 0:00:59]} 20... Rd7
{[%clk 0:01:07.1]} 21. Nf6 {[%clk 0:00:54.3]} 21... Rdd8 {[%clk 0:01:06.3]} 22.
b3 {[%clk 0:00:51.3]} 22... Ne7 {[%clk 0:01:06.3]} 23. Bd3 {[%clk 0:00:45]}
23... Nd7 {[%clk 0:01:03.7]} 24. Kb1 {[%clk 0:00:39.7]} 24... Nxf6 {[%clk
0:01:00.3]} 25. exf6 {[%clk 0:00:39]} 25... Nf5 {[%clk 0:01:00.7]} 26. Bxf5
{[%clk 0:00:37.8]} 26... exf5 {[%clk 0:01:00.4]} 27. d5 {[%clk 0:00:36.3]} 27...
Rhe8 {[%clk 0:00:59.7]} 28. Bc1 {[%clk 0:00:35.3]} 28... Re4 {[%clk 0:00:58.5]}
29. Rgf1 {[%clk 0:00:34.7]} 29... Rde8 {[%clk 0:00:54]} 30. Rf2 {[%clk
0:00:34.2]} 30... Re2 {[%clk 0:00:51.1]} 31. Rd2 {[%clk 0:00:31.9]} 31... Re1
{[%clk 0:00:50.2]} 32. Kc2 {[%clk 0:00:30.8]} 32... R8e4 {[%clk 0:00:48.7]} 33.
Rd1 {[%clk 0:00:29.4]} 33... R1e2+ {[%clk 0:00:46.6]} 34. Rd2 {[%clk 0:00:29.5]}
34... Re1 {[%clk 0:00:42.4]} 35. Rd1 {[%clk 0:00:29.5]} 35... Kd7 {[%clk
0:00:36.1]} 36. Rxe1 {[%clk 0:00:28.3]} 36... Rxe1 {[%clk 0:00:35.7]} 37. Bd2
{[%clk 0:00:28.3]} 37... Re4 {[%clk 0:00:34.7]} 38. Kd3 {[%clk 0:00:28.2]} 38...
c6 {[%clk 0:00:34.3]} 39. dxc6+ {[%clk 0:00:24.5]} 39... Kxc6 {[%clk 0:00:34.7]}
40. Be3 {[%clk 0:00:25.4]} 40... a6 {[%clk 0:00:33.2]} 41. b4 {[%clk 0:00:25]}
41... b5 {[%clk 0:00:32]} 42. cxb5+ {[%clk 0:00:24]} 42... Kxb5 {[%clk
0:00:31.9]} 43. a3 {[%clk 0:00:23.7]} 43... Re6 {[%clk 0:00:30]} 44. Bd4 {[%clk
0:00:22.8]} 44... Rd6 {[%clk 0:00:26.2]} 45. Kc3 {[%clk 0:00:22.1]} 45... Rc6+
{[%clk 0:00:22.7]} 46. Kb3 {[%clk 0:00:21.7]} 46... Rc4 {[%clk 0:00:22.2]} 47.
Be5 {[%clk 0:00:21.2]} 47... Re4 {[%clk 0:00:21.5]} 48. a4+ {[%clk 0:00:20.5]}
48... Kb6 {[%clk 0:00:21]} 49. Rf3 {[%clk 0:00:20.7]} 49... Re2 {[%clk
0:00:20.3]} 50. h3 {[%clk 0:00:20.5]} 50... h4 {[%clk 0:00:19.9]} 51. Rd3 {[%clk
0:00:20.2]} 51... Rg2 {[%clk 0:00:18]} 52. Rd6+ {[%clk 0:00:19.9]} 52... Kb7
{[%clk 0:00:18.2]} 53. Rd7+ {[%clk 0:00:20.2]} 53... Kc6 {[%clk 0:00:18.5]} 54.
Rxf7 {[%clk 0:00:20.2]} 54... Rg3+ {[%clk 0:00:18.6]} 55. Kc4 {[%clk 0:00:20.6]}
55... Rxh3 {[%clk 0:00:19]} 56. a5 {[%clk 0:00:20.5]} 56... Re3 {[%clk
0:00:17.4]} 57. Rc7# {[%clk 0:00:20.4]} 1-0

[Event "*** Titled Tuesday Blitz"]
[Site "Chess.com"]
[Date "2021.04.06"]
[Round "1"]
[White "Fore_Man"]
[Black "LawrenceTrent"]
[Result "0-1"]
[WhiteElo "2238"]
[BlackElo "2560"]
[TimeControl "180+1"]
[EndTime "10:07:55 PDT"]
[Termination "LawrenceTrent won on time"]

1. d4 {[%clk 0:02:57.3]} 1... d5 {[%clk 0:02:59.5]} 2. c4 {[%clk 0:02:55.5]}
2... e5 {[%clk 0:02:59.8]} 3. dxe5 {[%clk 0:02:45.8]} 3... d4 {[%clk 0:03:00.1]}
4. Nf3 {[%clk 0:02:43.9]} 4... Nc6 {[%clk 0:03:00]} 5. g3 {[%clk 0:02:42.4]}
5... Nge7 {[%clk 0:02:56.8]} 6. Bg2 {[%clk 0:02:40.9]} 6... Ng6 {[%clk
0:02:57.1]} 7. O-O {[%clk 0:02:33.9]} 7... Ngxe5 {[%clk 0:02:57.2]} 8. Nbd2
{[%clk 0:02:31.9]} 8... a5 {[%clk 0:02:55.5]} 9. Nxe5 {[%clk 0:02:27.5]} 9...
Nxe5 {[%clk 0:02:55.6]} 10. Nf3 {[%clk 0:02:27.8]} 10... Nxf3+ {[%clk
0:02:55.5]} 11. Bxf3 {[%clk 0:02:28.7]} 11... Be7 {[%clk 0:02:54.8]} 12. e3
{[%clk 0:02:27.4]} 12... dxe3 {[%clk 0:02:46.6]} 13. Qxd8+ {[%clk 0:02:28.3]}
13... Bxd8 {[%clk 0:02:46.4]} 14. Bxe3 {[%clk 0:02:26.7]} 14... O-O {[%clk
0:02:46.4]} 15. Bc5 {[%clk 0:02:21.3]} 15... Re8 {[%clk 0:02:46.5]} 16. Rfe1
{[%clk 0:02:21.4]} 16... Be6 {[%clk 0:02:29.7]} 17. Bxb7 {[%clk 0:02:13.1]}
17... Be7 {[%clk 0:02:23]} 18. Bxa8 {[%clk 0:02:01.7]} 18... Bxc5 {[%clk
0:02:20.2]} 19. Bd5 {[%clk 0:02:01.7]} 19... Kf8 {[%clk 0:02:18.7]} 20. Bxe6
{[%clk 0:01:59.6]} 20... fxe6 {[%clk 0:02:16.9]} 21. Rad1 {[%clk 0:01:56.8]}
21... Ke7 {[%clk 0:02:16.6]} 22. Re2 {[%clk 0:01:52]} 22... Rb8 {[%clk
0:02:08.5]} 23. Red2 {[%clk 0:01:46.1]} 23... Kf6 {[%clk 0:02:02.4]} 24. b3
{[%clk 0:01:43.4]} 24... a4 {[%clk 0:02:01.3]} 25. Rd3 {[%clk 0:01:40.7]} 25...
e5 {[%clk 0:01:55.7]} 26. Rd7 {[%clk 0:01:26.7]} 26... axb3 {[%clk 0:01:48.2]}
27. axb3 {[%clk 0:01:25.1]} 27... Rxb3 {[%clk 0:01:46.1]} 28. Rxc7 {[%clk
0:01:22.3]} 28... Bd4 {[%clk 0:01:46.5]} 29. Rd2 {[%clk 0:01:15.3]} 29... Rc3
{[%clk 0:01:42.4]} 30. Kg2 {[%clk 0:01:15.1]} 30... h5 {[%clk 0:01:38.9]} 31. h3
{[%clk 0:01:14.3]} 31... g5 {[%clk 0:01:30.5]} 32. Ra2 {[%clk 0:01:13.2]} 32...
Kf5 {[%clk 0:01:28.4]} 33. Rf7+ {[%clk 0:01:06.2]} 33... Ke4 {[%clk 0:01:23.7]}
34. Rc7 {[%clk 0:01:07.1]} 34... h4 {[%clk 0:01:22.5]} 35. gxh4 {[%clk
0:01:05.2]} 35... g4 {[%clk 0:01:21.2]} 36. hxg4 {[%clk 0:01:04.2]} 36... Kf4
{[%clk 0:01:21.7]} 37. f3 {[%clk 0:00:58.4]} 37... Rc1 {[%clk 0:01:17.9]} 38.
Re2 {[%clk 0:00:57]} 38... Rg1+ {[%clk 0:01:17]} 39. Kh2 {[%clk 0:00:56.7]}
39... Kxf3 {[%clk 0:01:16.2]} 40. Rc2 {[%clk 0:00:53.6]} 40... Rxg4 {[%clk
0:01:04.6]} 41. Rh7 {[%clk 0:00:44]} 41... e4 {[%clk 0:00:57.7]} 42. c5 {[%clk
0:00:41.1]} 42... Be5+ {[%clk 0:00:57.1]} 43. Kh1 {[%clk 0:00:36.5]} 43... e3
{[%clk 0:00:56.6]} 44. Rf7+ {[%clk 0:00:33]} 44... Bf4 {[%clk 0:00:54.2]} 45.
Rxf4+ {[%clk 0:00:20.2]} 45... Rxf4 {[%clk 0:00:53.4]} 46. c6 {[%clk 0:00:21.1]}
46... Rxh4+ {[%clk 0:00:53.3]} 47. Kg1 {[%clk 0:00:20.7]} 47... Rg4+ {[%clk
0:00:39.1]} 48. Kf1 {[%clk 0:00:16.7]} 48... Rh4 {[%clk 0:00:39.5]} 49. Kg1
{[%clk 0:00:13.9]} 49... Rg4+ {[%clk 0:00:31]} 50. Kf1 {[%clk 0:00:13.5]} 50...
Ra4 {[%clk 0:00:31.6]} 51. Rc1 {[%clk 0:00:11.6]} 51... Rh4 {[%clk 0:00:26.8]}
52. Kg1 {[%clk 0:00:10.9]} 52... Rg4+ {[%clk 0:00:27.3]} 53. Kf1 {[%clk
0:00:10.6]} 53... e2+ {[%clk 0:00:25.9]} 54. Ke1 {[%clk 0:00:09.9]} 54... Rg1+
{[%clk 0:00:26.5]} 55. Kd2 {[%clk 0:00:09.8]} 55... Rxc1 {[%clk 0:00:27.4]} 0-1

[Event "*** Titled Tuesday Blitz"]
[Site "Chess.com"]
[Date "2021.04.06"]
[Round "1"]
[White "MustafayevFarid2004"]
[Black "jraosam"]
[Result "1-0"]
[WhiteElo "2483"]
[BlackElo "1859"]
[TimeControl "180+1"]
[EndTime "10:07:55 PDT"]
[Termination "MustafayevFarid2004 won on time"]

1. d4 {[%clk 0:02:54.9]} 1... d5 {[%clk 0:02:31.5]} 2. e3 {[%clk 0:02:55.7]}
2... Nf6 {[%clk 0:02:29]} 3. Nf3 {[%clk 0:02:56.6]} 3... c5 {[%clk 0:02:28.4]}
4. Nbd2 {[%clk 0:02:57.5]} 4... Nc6 {[%clk 0:02:27.7]} 5. Bb5 {[%clk 0:02:57.3]}
5... cxd4 {[%clk 0:02:16.8]} 6. exd4 {[%clk 0:02:38.4]} 6... a6 {[%clk
0:02:14.1]} 7. Bd3 {[%clk 0:02:35.7]} 7... Bg4 {[%clk 0:02:12.4]} 8. h3 {[%clk
0:02:34.3]} 8... Bh5 {[%clk 0:02:12.5]} 9. c3 {[%clk 0:02:32.2]} 9... e6 {[%clk
0:02:12.6]} 10. Qc2 {[%clk 0:02:31.4]} 10... Bd6 {[%clk 0:02:12.8]} 11. O-O
{[%clk 0:02:30.1]} 11... Rc8 {[%clk 0:02:11.5]} 12. Qb1 {[%clk 0:02:20.1]} 12...
Bg6 {[%clk 0:02:10.9]} 13. Re1 {[%clk 0:02:19.3]} 13... Kf8 {[%clk 0:02:08.8]}
14. Ne5 {[%clk 0:02:18.3]} 14... Qc7 {[%clk 0:02:03.4]} 15. f4 {[%clk
0:01:56.5]} 15... Bxd3 {[%clk 0:01:29.3]} 16. Qxd3 {[%clk 0:01:57.4]} 16... Bxe5
{[%clk 0:01:24.8]} 17. fxe5 {[%clk 0:01:56]} 17... Nd7 {[%clk 0:01:24.4]} 18.
Nf3 {[%clk 0:01:43.8]} 18... Kg8 {[%clk 0:01:17.1]} 19. Rf1 {[%clk 0:01:34.3]}
19... h6 {[%clk 0:01:10.9]} 20. Bf4 {[%clk 0:01:30.1]} 20... f5 {[%clk
0:00:59.6]} 21. g4 {[%clk 0:01:17.5]} 21... g5 {[%clk 0:00:58.7]} 22. gxf5
{[%clk 0:01:07.8]} 22... gxf4 {[%clk 0:00:53.9]} 23. f6 {[%clk 0:00:53.1]} 23...
Kf7 {[%clk 0:00:42.5]} 24. Nh4 {[%clk 0:00:50.6]} 24... Rcg8+ {[%clk 0:00:40.1]}
25. Kh1 {[%clk 0:00:49.9]} 25... Ndxe5 {[%clk 0:00:31.3]} 26. dxe5 {[%clk
0:00:49.3]} 26... Nxe5 {[%clk 0:00:32.2]} 27. Qd4 {[%clk 0:00:46.7]} 27... Nc6
{[%clk 0:00:27.4]} 28. Qxf4 {[%clk 0:00:41.4]} 28... Qxf4 {[%clk 0:00:23.3]} 29.
Rxf4 {[%clk 0:00:42.3]} 29... Rg5 {[%clk 0:00:22.9]} 30. Re1 {[%clk 0:00:32.9]}
30... Rhg8 {[%clk 0:00:22.6]} 31. Nf3 {[%clk 0:00:33.1]} 31... Rg3 {[%clk
0:00:20.3]} 32. Kh2 {[%clk 0:00:29.7]} 32... Rg2+ {[%clk 0:00:19.9]} 33. Kh1
{[%clk 0:00:30.1]} 33... Rxb2 {[%clk 0:00:18.6]} 34. Rh4 {[%clk 0:00:29.2]}
34... Rg3 {[%clk 0:00:15.9]} 35. Rf1 {[%clk 0:00:26.2]} 35... Kf8 {[%clk
0:00:13.2]} 36. Rxh6 {[%clk 0:00:26.1]} 36... Kf7 {[%clk 0:00:12]} 37. Nh2
{[%clk 0:00:18.6]} 37... Rgg2 {[%clk 0:00:11.2]} 38. Ng4 {[%clk 0:00:18.3]}
38... Rxa2 {[%clk 0:00:07.5]} 39. Rh7+ {[%clk 0:00:18.1]} 39... Kf8 {[%clk
0:00:06.2]} 40. f7 {[%clk 0:00:18.1]} 40... Rxg4 {[%clk 0:00:02.5]} 41. Rh8+
{[%clk 0:00:16.5]} 41... Ke7 {[%clk 0:00:02.9]} 42. f8=Q+ {[%clk 0:00:16.7]}
42... Kd7 {[%clk 0:00:03.8]} 43. Rf7+ {[%clk 0:00:15.6]} 1-0

[Event "*** Titled Tuesday Blitz"]
[Site "Chess.com"]
[Date "2021.04.06"]
[Round "1"]
[White "gmgamil"]
[Black "aa175"]
[Result "0-1"]
[WhiteElo "2804"]
[BlackElo "2446"]
[TimeControl "180+1"]
[EndTime "10:07:57 PDT"]
[Termination "aa175 won on time"]

1. d4 {[%clk 0:03:00.9]} 1... e5 {[%clk 0:02:59.4]} 2. Nc3 {[%clk 0:03:01.8]}
2... exd4 {[%clk 0:02:59.4]} 3. Qxd4 {[%clk 0:03:02.2]} 3... Nc6 {[%clk
0:03:00.3]} 4. Qa4 {[%clk 0:03:01.5]} 4... Nf6 {[%clk 0:02:59.9]} 5. e4 {[%clk
0:03:02.1]} 5... Bc5 {[%clk 0:02:59]} 6. Bg5 {[%clk 0:03:01.2]} 6... Bxf2+
{[%clk 0:02:58.3]} 7. Kxf2 {[%clk 0:03:00]} 7... Ng4+ {[%clk 0:02:58.2]} 8. Kg3
{[%clk 0:02:59.6]} 8... Qxg5 {[%clk 0:02:58]} 9. Nf3 {[%clk 0:02:59.8]} 9... Qe3
{[%clk 0:02:36.5]} 10. Nd1 {[%clk 0:02:45.7]} 10... Qc5 {[%clk 0:02:01]} 11.
Kxg4 {[%clk 0:02:43.9]} 11... h5+ {[%clk 0:01:46.7]} 12. Kf4 {[%clk 0:02:39.9]}
12... g5+ {[%clk 0:01:39.1]} 13. Nxg5 {[%clk 0:02:38.7]} 13... Qe5+ {[%clk
0:01:39]} 14. Kf3 {[%clk 0:02:39]} 14... Qxg5 {[%clk 0:01:39.9]} 15. Ne3 {[%clk
0:02:32.9]} 15... b5 {[%clk 0:01:23.3]} 16. Qa3 {[%clk 0:02:06.4]} 16... b4
{[%clk 0:01:09.3]} 17. Qa4 {[%clk 0:01:50.6]} 17... Nd4+ {[%clk 0:01:07.4]} 18.
Kf2 {[%clk 0:00:35.4]} 18... Qf4+ {[%clk 0:01:06]} 19. Ke1 {[%clk 0:00:36.3]}
19... Qxe3+ {[%clk 0:01:06.7]} 20. Kd1 {[%clk 0:00:36.6]} 20... Rh6 {[%clk
0:00:37.3]} 21. Bd3 {[%clk 0:00:30.1]} 21... c5 {[%clk 0:00:31.8]} 22. Re1
{[%clk 0:00:21.3]} 22... Qf2 {[%clk 0:00:31.9]} 23. c3 {[%clk 0:00:21.8]} 23...
Qxb2 {[%clk 0:00:30.8]} 24. Rb1 {[%clk 0:00:21.7]} 24... Qxc3 {[%clk 0:00:26.1]}
25. Re3 {[%clk 0:00:21.7]} 25... Rf6 {[%clk 0:00:22.4]} 26. Rc1 {[%clk 0:00:16]}
26... Rf1+ {[%clk 0:00:17.6]} 27. Bxf1 {[%clk 0:00:16.6]} 27... Qxe3 {[%clk
0:00:18.2]} 28. h3 {[%clk 0:00:13.9]} 28... Qf2 {[%clk 0:00:16.2]} 29. Bc4
{[%clk 0:00:13.1]} 29... Ke7 {[%clk 0:00:14.3]} 30. Qa5 {[%clk 0:00:11.9]} 30...
Qg1+ {[%clk 0:00:11.3]} 31. Kd2 {[%clk 0:00:11.7]} 31... Qxg2+ {[%clk
0:00:11.8]} 32. Kd3 {[%clk 0:00:11.7]} 32... Qf3+ {[%clk 0:00:11.6]} 33. Kd2
{[%clk 0:00:11.9]} 33... Qf4+ {[%clk 0:00:11.3]} 34. Kd1 {[%clk 0:00:12.1]}
34... Qd6 {[%clk 0:00:06.9]} 35. Ke1 {[%clk 0:00:11.4]} 35... Nc6 {[%clk
0:00:06.5]} 36. Qb5 {[%clk 0:00:10.9]} 36... Ne5 {[%clk 0:00:07]} 37. Be2 {[%clk
0:00:10.4]} 37... Ba6 {[%clk 0:00:06.8]} 38. Qxc5 {[%clk 0:00:10.5]} 38... Bxe2
{[%clk 0:00:02.8]} 39. Kxe2 {[%clk 0:00:10.8]} 39... Qxc5 {[%clk 0:00:02.9]} 40.
Rxc5 {[%clk 0:00:11.7]} 40... d6 {[%clk 0:00:03.6]} 41. Rc7+ {[%clk 0:00:11.9]}
41... Ke6 {[%clk 0:00:03.5]} 42. Rb7 {[%clk 0:00:12.8]} 42... a5 {[%clk
0:00:04]} 43. Rb5 {[%clk 0:00:12.4]} 43... f6 {[%clk 0:00:04.5]} 44. Rb7 {[%clk
0:00:12.6]} 44... h4 {[%clk 0:00:05]} 45. Rh7 {[%clk 0:00:12.5]} 45... Rc8
{[%clk 0:00:05]} 46. Rb7 {[%clk 0:00:13.4]} 46... Rc2+ {[%clk 0:00:05.4]} 47.
Kd1 {[%clk 0:00:14.2]} 47... Rxa2 {[%clk 0:00:05.8]} 48. Ra7 {[%clk 0:00:15.1]}
48... Rh2 {[%clk 0:00:06.3]} 49. Kc1 {[%clk 0:00:15.4]} 49... Rxh3 {[%clk
0:00:07.2]} 50. Rxa5 {[%clk 0:00:14.7]} 50... Rc3+ {[%clk 0:00:08.1]} 51. Kd2
{[%clk 0:00:14.6]} 51... Nc4+ {[%clk 0:00:09]} 52. Ke2 {[%clk 0:00:15]} 52...
Nxa5 {[%clk 0:00:09.9]} 0-1

[Event "*** Titled Tuesday Blitz"]
[Site "Chess.com"]
[Date "2021.04.06"]
[Round "1"]
[White "freshfoodcompany"]
[Black "Murad_Ibrahimli"]
[Result "0-1"]
[WhiteElo "2431"]
[BlackElo "2821"]
[TimeControl "180+1"]
[EndTime "10:07:59 PDT"]
[Termination "Murad_Ibrahimli won by resignation"]

1. d4 {[%clk 0:03:00.9]} 1... Nf6 {[%clk 0:02:59.1]} 2. c4 {[%clk 0:03:00.8]}
2... e6 {[%clk 0:02:58.5]} 3. Nf3 {[%clk 0:03:00.6]} 3... d5 {[%clk 0:02:58.4]}
4. Nc3 {[%clk 0:03:00.8]} 4... Be7 {[%clk 0:02:58.2]} 5. Bf4 {[%clk 0:03:01]}
5... O-O {[%clk 0:02:55.1]} 6. e3 {[%clk 0:03:01.2]} 6... Nbd7 {[%clk
0:02:53.9]} 7. c5 {[%clk 0:03:00.8]} 7... Ne4 {[%clk 0:02:51.9]} 8. Bd3 {[%clk
0:02:58.4]} 8... f5 {[%clk 0:02:51.4]} 9. h3 {[%clk 0:02:54.3]} 9... c6 {[%clk
0:02:34.4]} 10. Ne5 {[%clk 0:02:47.2]} 10... Nxe5 {[%clk 0:02:29.5]} 11. Bxe5
{[%clk 0:02:46.4]} 11... b6 {[%clk 0:02:27.1]} 12. Bxe4 {[%clk 0:02:28]} 12...
fxe4 {[%clk 0:02:15.5]} 13. b4 {[%clk 0:02:24.9]} 13... a5 {[%clk 0:02:15]} 14.
a3 {[%clk 0:02:23.9]} 14... Bf6 {[%clk 0:01:22.5]} 15. Bxf6 {[%clk 0:02:17.6]}
15... Qxf6 {[%clk 0:01:21.5]} 16. O-O {[%clk 0:02:16.4]} 16... bxc5 {[%clk
0:01:16.2]} 17. bxc5 {[%clk 0:02:15]} 17... Ba6 {[%clk 0:01:15.8]} 18. Ne2
{[%clk 0:02:11.1]} 18... e5 {[%clk 0:01:16.1]} 19. Qd2 {[%clk 0:02:00.6]} 19...
Bxe2 {[%clk 0:01:14.3]} 20. dxe5 {[%clk 0:01:57.8]} 20... Qxe5 {[%clk
0:01:00.5]} 21. Qxe2 {[%clk 0:01:57.4]} 21... Rab8 {[%clk 0:00:59.1]} 22. Rac1
{[%clk 0:01:55.6]} 22... Rb2 {[%clk 0:00:48.6]} 23. Rc2 {[%clk 0:01:54.5]} 23...
Rfb8 {[%clk 0:00:37.7]} 24. Rxb2 {[%clk 0:01:47.5]} 24... Qxb2 {[%clk
0:00:38.6]} 25. Qg4 {[%clk 0:01:45.9]} 25... Qf6 {[%clk 0:00:38.1]} 26. Qd7
{[%clk 0:01:41.5]} 26... h6 {[%clk 0:00:37]} 27. a4 {[%clk 0:01:38.7]} 27... Rb4
{[%clk 0:00:36.6]} 28. Qd6 {[%clk 0:01:26.5]} 28... Rxa4 {[%clk 0:00:33.8]} 29.
Rb1 {[%clk 0:01:18.5]} 29... Ra1 {[%clk 0:00:26.1]} 30. Rxa1 {[%clk 0:01:08]}
30... Qxa1+ {[%clk 0:00:27]} 31. Kh2 {[%clk 0:01:08.5]} 31... Qf6 {[%clk
0:00:27.4]} 32. Qb8+ {[%clk 0:01:00.2]} 32... Kh7 {[%clk 0:00:27.4]} 33. Qa8
{[%clk 0:00:56.8]} 33... Qe5+ {[%clk 0:00:22.8]} 34. Kg1 {[%clk 0:00:56.2]}
34... Qa1+ {[%clk 0:00:23.2]} 35. Kh2 {[%clk 0:00:56.6]} 35... Qf6 {[%clk
0:00:22.1]} 36. Qxa5 {[%clk 0:00:55.1]} 36... Qxf2 {[%clk 0:00:21.9]} 37. Qc3
{[%clk 0:00:46.7]} 37... Qf6 {[%clk 0:00:22.2]} 38. Qc2 {[%clk 0:00:30.1]} 38...
Qe5+ {[%clk 0:00:20.2]} 39. Kg1 {[%clk 0:00:28.6]} 39... d4 {[%clk 0:00:21.1]}
40. exd4 {[%clk 0:00:25.9]} 40... Qxd4+ {[%clk 0:00:22]} 41. Kh2 {[%clk
0:00:24.9]} 41... Qe5+ {[%clk 0:00:21.3]} 42. Kg1 {[%clk 0:00:23.7]} 42... Kh8
{[%clk 0:00:21.8]} 43. Kf2 {[%clk 0:00:20.7]} 43... Qf4+ {[%clk 0:00:21.9]} 44.
Ke2 {[%clk 0:00:19.9]} 44... e3 {[%clk 0:00:22.4]} 45. Qg6 {[%clk 0:00:12.4]}
45... Qf2+ {[%clk 0:00:22.3]} 46. Kd3 {[%clk 0:00:12.5]} 46... Qd2+ {[%clk
0:00:13.1]} 47. Kc4 {[%clk 0:00:12.7]} 47... Qc1+ {[%clk 0:00:12.6]} 48. Kb3
{[%clk 0:00:12]} 48... Qd1+ {[%clk 0:00:11.8]} 49. Kc3 {[%clk 0:00:11.8]} 49...
Qd2+ {[%clk 0:00:12.1]} 50. Kb3 {[%clk 0:00:12]} 50... Qd5+ {[%clk 0:00:12.1]}
51. Kb2 {[%clk 0:00:10.6]} 51... Qe5+ {[%clk 0:00:11.6]} 52. Kc2 {[%clk
0:00:10]} 52... e2 {[%clk 0:00:12]} 53. Qd3 {[%clk 0:00:08.1]} 53... e1=Q {[%clk
0:00:12]} 54. Qd8+ {[%clk 0:00:08]} 54... Kh7 {[%clk 0:00:12.6]} 55. Qd3+ {[%clk
0:00:08.2]} 55... Q1e4 {[%clk 0:00:13.2]} 56. Qxe4+ {[%clk 0:00:08.5]} 56...
Qxe4+ {[%clk 0:00:14.1]} 0-1